[Event "Jeux du Barreau 2019"]
[Site "Paris, France"]
[Date "2019.07.10"]
[Round "2.4"]
[White "Delage, Pierre Luc"]
[Black "Rachid, Danial"]
[Result "0-1"]
[TimeControl "15+3"]
[WhiteElo "1399"]
[BlackElo "2020"]

1. e4 {[%clk 00:15:02]} {[%emt 00:00:04]} e6 {[%clk 00:14:58]} {[%emt
00:00:09]} 2. Nf3 {[%clk 00:15:00]} {[%emt 00:00:05]} b6 {[%clk 00:14:59]}
{[%emt 00:00:03]} 3. Nc3 {[%clk 00:14:35]} {[%emt 00:00:27]} Bb7 {[%clk
00:14:59]} {[%emt 00:00:03]} 4. d4 {[%clk 00:13:44]} {[%emt 00:00:53]} Be7
{[%clk 00:14:14]} {[%emt 00:00:48]} 5. Bd3 {[%clk 00:13:13]} {[%emt 00:00:34]}
Nf6 {[%clk 00:14:01]} {[%emt 00:00:16]} 6. e5 {[%clk 00:12:26]} {[%emt
00:00:50]} Nd5 {[%clk 00:13:47]} {[%emt 00:00:17]} 7. Ne4 {[%clk 00:11:47]}
{[%emt 00:00:43]} f5 {[%clk 00:13:16]} {[%emt 00:00:35]} 8. exf6 {[%clk
00:10:47]} {[%emt 00:01:01]} Nxf6 {[%clk 00:12:55]} {[%emt 00:00:25]} 9. Nxf6+
{[%clk 00:10:02]} {[%emt 00:00:48]} Bxf6 {[%clk 00:12:51]} {[%emt 00:00:08]} 10.
Be3 {[%clk 00:08:49]} {[%emt 00:01:16]} Nc6 {[%clk 00:12:34]} {[%emt 00:00:19]}
11. c3 {[%clk 00:08:36]} {[%emt 00:00:16]} Qe7 {[%clk 00:11:46]} {[%emt
00:00:52]} 12. Qe2 {[%clk 00:07:58]} {[%emt 00:00:41]} O-O-O {[%clk 00:10:31]}
{[%emt 00:01:18]} 13. Ba6 {[%clk 00:07:47]} {[%emt 00:00:14]} g5 {[%clk
00:08:51]} {[%emt 00:01:41]} 14. Bxb7+ {[%clk 00:07:42]} {[%emt 00:00:08]} Kxb7
{[%clk 00:08:55]} {[%emt 00:00:01]} 15. O-O {[%clk 00:06:42]} {[%emt 00:01:03]}
h5 {[%clk 00:08:21]} {[%emt 00:00:37]} 16. Qd2 {[%clk 00:06:27]} {[%emt
00:00:17]} g4 {[%clk 00:08:14]} {[%emt 00:00:10]} 17. Ng5 {[%clk 00:05:44]}
{[%emt 00:00:46]} Rdg8 {[%clk 00:07:40]} {[%emt 00:00:37]} 18. Ne4 {[%clk
00:05:40]} {[%emt 00:00:07]} h4 {[%clk 00:07:17]} {[%emt 00:00:26]} 19. Nxf6
{[%clk 00:05:32]} {[%emt 00:00:10]} Qxf6 {[%clk 00:07:19]} {[%emt 00:00:02]} 20.
d5 {[%clk 00:04:58]} {[%emt 00:00:37]} Ne5 {[%clk 00:05:16]} {[%emt 00:02:06]}
21. dxe6 {[%clk 00:03:48]} {[%emt 00:01:12]} Qxe6 {[%clk 00:04:34]} {[%emt
00:00:45]} 22. Bd4 {[%clk 00:03:46]} {[%emt 00:00:06]} h3 {[%clk 00:04:28]}
{[%emt 00:00:09]} 23. Bxe5 {[%clk 00:03:24]} {[%emt 00:00:24]} Qxe5 {[%clk
00:04:25]} {[%emt 00:00:06]} 24. g3 {[%clk 00:02:26]} {[%emt 00:01:02]} Qe4
{[%clk 00:04:25]} {[%emt 00:00:03]} 25. f3 {[%clk 00:02:22]} {[%emt 00:00:07]}
gxf3 {[%clk 00:04:23]} {[%emt 00:00:05]} 26. Qf2 {[%clk 00:02:18]} {[%emt
00:00:07]} Rf8 {[%clk 00:04:09]} {[%emt 00:00:16]} 27. Rae1 {[%clk 00:02:17]}
{[%emt 00:00:04]} Qc4 {[%clk 00:03:55]} {[%emt 00:00:17]} 28. Re3 {[%clk
00:02:17]} {[%emt 00:00:04]} Qc5 {[%clk 00:03:40]} {[%emt 00:00:17]} 29. Kh1
{[%clk 00:01:51]} {[%emt 00:00:29]} a5 {[%clk 00:03:23]} {[%emt 00:00:20]} 30.
Rxf3 {[%clk 00:01:50]} {[%emt 00:00:04]} Qxf2 {[%clk 00:02:40]} {[%emt
00:00:48]} 31. R3xf2 {[%clk 00:01:48]} {[%emt 00:00:04]} Rxf2 {[%clk 00:02:41]}
{[%emt 00:00:02]} 32. Rxf2 {[%clk 00:01:49]} {[%emt 00:00:02]} Re8 {[%clk
00:02:43]} {[%emt 00:00:01]} 33. Rf1 {[%clk 00:01:46]} {[%emt 00:00:06]} Re2
{[%clk 00:02:43]} {[%emt 00:00:02]} 34. Kg1 {[%clk 00:01:34]} {[%emt 00:00:15]}
Rxb2 {[%clk 00:02:42]} {[%emt 00:00:05]} 35. Rf7 {[%clk 00:01:19]} {[%emt
00:00:18]} Kc6 {[%clk 00:02:32]} {[%emt 00:00:14]} 36. a4 {[%clk 00:01:19]}
{[%emt 00:00:04]} Rc2 {[%clk 00:02:20]} {[%emt 00:00:14]} 37. Rh7 {[%clk
00:01:19]} {[%emt 00:00:02]} Rxc3 {[%clk 00:02:18]} {[%emt 00:00:05]} 38. Rxh3
{[%clk 00:01:20]} {[%emt 00:00:02]} Rc4 {[%clk 00:02:15]} {[%emt 00:00:07]} 39.
Rh6+ {[%clk 00:01:18]} {[%emt 00:00:05]} d6 {[%clk 00:02:10]} {[%emt 00:00:08]}
40. Kg2 {[%clk 00:01:20]} Rxa4 {[%emt 00:00:02]} 41. Kf2 {[%clk 00:01:17]}
{[%emt 00:00:05]} Ra2+ {[%clk 00:01:56]} {[%emt 00:00:18]} 42. Kf3 {[%clk
00:01:17]} {[%emt 00:00:02]} a4 {[%clk 00:01:58]} {[%emt 00:00:02]} 43. Rh4
{[%clk 00:01:17]} {[%emt 00:00:03]} a3 {[%clk 00:01:57]} {[%emt 00:00:05]} 44.
Rc4+ {[%clk 00:01:18]} {[%emt 00:00:02]} Kb5 {[%clk 00:01:54]} {[%emt
00:00:06]} 45. Rc3 {[%clk 00:01:19]} {[%emt 00:00:01]} Kb4 {[%clk 00:01:53]}
{[%emt 00:00:05]} 46. Rd3 {[%clk 00:01:20]} {[%emt 00:00:01]} Rxh2 {[%clk
00:01:53]} {[%emt 00:00:04]} 47. Rd4+ {[%clk 00:01:15]} {[%emt 00:00:08]} Kc3
{[%clk 00:01:52]} {[%emt 00:00:03]} 48. Ke3 {[%clk 00:01:16]} {[%emt 00:00:02]}
Re2 {[%clk 00:01:48]} {[%emt 00:00:07]} 49. Kxe2 {[%clk 00:01:17]} {[%emt
00:00:02]} Kxd4 {[%clk 00:01:50]} 50. g4 {[%clk 00:01:15]} {[%emt 00:00:05]}
Ke5 {[%clk 00:01:53]} {[%emt 00:00:01]} 51. g5 {[%clk 00:01:10]} {[%emt
00:00:08]} Kf5 {[%clk 00:01:55]} {[%emt 00:00:01]} 52. Kd2 {[%clk 00:01:12]}
{[%emt 00:00:01]} a2 {[%clk 00:01:56]} {[%emt 00:00:02]} 53. Kc2 {[%clk
00:01:07]} {[%emt 00:00:08]} a1=Q {[%clk 00:01:56]} {[%emt 00:00:03]} 54. g6
{[%clk 00:01:08]} {[%emt 00:00:03]} Kxg6 {[%clk 00:01:56]} {[%emt 00:00:02]} 55.
Kd2 {[%clk 00:01:09]} {[%emt 00:00:01]} Qa3 {[%clk 00:01:56]} {[%emt 00:00:03]}
56. Ke2 {[%clk 00:01:10]} {[%emt 00:00:03]} Kf5 {[%clk 00:01:58]} {[%emt
00:00:01]} 57. Kd2 {[%clk 00:01:11]} {[%emt 00:00:01]} Ke4 {[%clk 00:02:00]}
{[%emt 00:00:01]} 58. Ke2 {[%clk 00:01:13]} {[%emt 00:00:01]} Qb2+ {[%clk
00:02:02]} 59. Kf1 {[%clk 00:01:14]} {[%emt 00:00:02]} Kf3 {[%clk 00:02:03]}
{[%emt 00:00:01]} 60. Kg1 {[%clk 00:01:14]} {[%emt 00:00:03]} Qg2# {[%clk
00:02:05]} {[%emt 00:00:01]} 0-1

[Event "Jeux du Barreau 2019"]
[Site "Paris, France"]
[Date "2019.07.10"]
[Round "2.5"]
[White "Chanel, Virgile"]
[Black "Levy, David"]
[Result "1-0"]
[TimeControl "15+3"]
[WhiteElo "1991"]
[BlackElo "1511"]

1. e4 {[%clk 00:15:04]} {[%emt 00:00:01]} c6 {[%clk 00:15:04]} {[%emt
00:00:03]} 2. d4 {[%clk 00:15:04]} {[%emt 00:00:02]} d5 {[%clk 00:15:03]}
{[%emt 00:00:04]} 3. exd5 {[%clk 00:15:00]} {[%emt 00:00:07]} Qxd5 {[%clk
00:15:04]} {[%emt 00:00:02]} 4. c4 {[%clk 00:14:33]} {[%emt 00:00:30]} Qa5+
{[%clk 00:15:06]} {[%emt 00:00:01]} 5. Nc3 {[%clk 00:14:12]} {[%emt 00:00:23]}
Nf6 {[%clk 00:15:04]} {[%emt 00:00:05]} 6. Nf3 {[%clk 00:13:53]} {[%emt
00:00:21]} Bg4 {[%clk 00:15:05]} {[%emt 00:00:02]} 7. Be2 {[%clk 00:13:35]}
{[%emt 00:00:21]} e6 {[%clk 00:15:07]} {[%emt 00:00:02]} 8. O-O {[%clk
00:13:32]} {[%emt 00:00:05]} Bd6 {[%clk 00:15:02]} {[%emt 00:00:08]} 9. Re1
{[%clk 00:12:37]} {[%emt 00:00:58]} O-O {[%clk 00:15:03]} {[%emt 00:00:03]} 10.
Be3 {[%clk 00:12:33]} {[%emt 00:00:07]} Nbd7 {[%clk 00:15:01]} {[%emt
00:00:05]} 11. Nd2 {[%clk 00:11:38]} {[%emt 00:00:58]} Bf5 {[%clk 00:14:58]}
{[%emt 00:00:06]} 12. Bf3 {[%clk 00:09:38]} {[%emt 00:02:02]} Rfe8 {[%clk
00:12:57]} {[%emt 00:02:04]} 13. Nde4 {[%clk 00:09:27]} {[%emt 00:00:14]} Be7
{[%clk 00:12:44]} {[%emt 00:00:16]} 14. Bf4 {[%clk 00:08:31]} {[%emt 00:00:59]}
Nxe4 {[%clk 00:12:21]} {[%emt 00:00:27]} 15. Nxe4 {[%clk 00:08:03]} {[%emt
00:00:31]} Nf6 {[%clk 00:12:00]} {[%emt 00:00:24]} 16. Nd6 {[%clk 00:07:43]}
{[%emt 00:00:23]} Bxd6 {[%clk 00:11:58]} {[%emt 00:00:05]} 17. Bxd6 {[%clk
00:07:45]} {[%emt 00:00:02]} Rad8 {[%clk 00:11:45]} {[%emt 00:00:15]} 18. c5
{[%clk 00:07:04]} {[%emt 00:00:44]} Nd5 {[%clk 00:10:50]} {[%emt 00:00:58]} 19.
a3 {[%clk 00:06:31]} {[%emt 00:00:36]} b6 {[%clk 00:10:18]} {[%emt 00:00:35]}
20. b4 {[%clk 00:06:28]} {[%emt 00:00:07]} Qa6 {[%clk 00:10:19]} {[%emt
00:00:01]} 21. Qb3 {[%clk 00:05:26]} {[%emt 00:01:04]} Qb7 {[%clk 00:04:12]}
{[%emt 00:06:11]} 22. Re2 {[%clk 00:04:14]} {[%emt 00:01:14]} Nc7 {[%clk
00:02:42]} {[%emt 00:01:33]} 23. b5 {[%clk 00:03:52]} {[%emt 00:00:26]} Nd5
{[%clk 00:02:32]} {[%emt 00:00:14]} 24. Rae1 {[%clk 00:03:28]} {[%emt
00:00:26]} Qd7 {[%clk 00:02:33]} {[%emt 00:00:02]} 25. a4 {[%clk 00:03:07]}
{[%emt 00:00:24]} h6 {[%clk 00:02:11]} {[%emt 00:00:25]} 26. g3 {[%clk
00:02:52]} {[%emt 00:00:17]} Rc8 {[%clk 00:01:54]} {[%emt 00:00:20]} 27. Kg2
{[%clk 00:02:16]} {[%emt 00:00:39]} g5 {[%clk 00:01:32]} {[%emt 00:00:25]} 28.
h3 {[%clk 00:02:03]} {[%emt 00:00:16]} Kg7 {[%clk 00:01:31]} {[%emt 00:00:04]}
29. Kh2 {[%clk 00:01:32]} {[%emt 00:00:34]} Kg8 {[%clk 00:01:24]} {[%emt
00:00:10]} 30. bxc6 {[%clk 00:01:13]} {[%emt 00:00:22]} Qxc6 {[%clk 00:01:23]}
{[%emt 00:00:03]} 31. Bxd5 {[%clk 00:01:14]} {[%emt 00:00:02]} exd5 {[%clk
00:01:24]} {[%emt 00:00:02]} 32. Rxe8+ {[%clk 00:01:15]} {[%emt 00:00:03]} Rxe8
{[%emt 00:00:02]} 33. Rxe8+ {[%clk 00:01:15]} Qxe8 {[%clk 00:01:28]} {[%emt
00:00:01]} 34. Qxd5 {[%clk 00:01:16]} {[%emt 00:00:02]} Qd7 {[%clk 00:00:47]}
{[%emt 00:00:44]} 35. Qa8+ {[%clk 00:01:01]} {[%emt 00:00:19]} Kg7 {[%clk
00:00:47]} {[%emt 00:00:03]} 36. Qf8+ {[%clk 00:00:55]} {[%emt 00:00:08]} Kh7
{[%clk 00:00:32]} {[%emt 00:00:17]} 37. Be5 {[%clk 00:00:49]} {[%emt 00:00:10]}
Be6 {[%clk 00:00:05]} {[%emt 00:00:31]} 38. Qg7# {[%emt 00:00:02]} 1-0

[Event "Jeux du Barreau 2019"]
[Site "Paris, France"]
[Date "2019.07.10"]
[Round "2.6"]
[White "De Vareilles-Sommier, Ferdinand"]
[Black "Gautier, Joel"]
[Result "0-1"]
[TimeControl "15+3"]
[WhiteElo "1399"]
[BlackElo "1975"]

1. e4 {[%clk 00:15:03]} {[%emt 00:00:02]} e6 {[%clk 00:15:04]} {[%emt
00:00:03]} 2. Nf3 {[%clk 00:15:01]} {[%emt 00:00:06]} d5 {[%clk 00:15:04]}
{[%emt 00:00:02]} 3. exd5 {[%clk 00:14:46]} {[%emt 00:00:18]} exd5 {[%clk
00:15:05]} {[%emt 00:00:02]} 4. d4 {[%clk 00:14:40]} {[%emt 00:00:09]} Bd6
{[%clk 00:14:59]} {[%emt 00:00:09]} 5. Nc3 {[%clk 00:14:11]} {[%emt 00:00:32]}
Ne7 {[%clk 00:14:54]} {[%emt 00:00:07]} 6. Qe2 {[%clk 00:13:54]} {[%emt
00:00:21]} c6 {[%clk 00:14:13]} {[%emt 00:00:44]} 7. Qe3 {[%clk 00:12:22]}
{[%emt 00:01:33]} O-O {[%clk 00:14:03]} {[%emt 00:00:15]} 8. Bd3 {[%clk
00:12:11]} {[%emt 00:00:14]} Nf5 {[%clk 00:13:44]} {[%emt 00:00:22]} 9. Bxf5
{[%clk 00:11:57]} {[%emt 00:00:17]} Bxf5 {[%clk 00:13:18]} {[%emt 00:00:28]} 10.
Qe2 {[%clk 00:10:44]} {[%emt 00:01:16]} Re8 {[%clk 00:13:15]} {[%emt 00:00:06]}
11. Ne5 {[%clk 00:10:44]} {[%emt 00:00:03]} f6 {[%clk 00:13:10]} {[%emt
00:00:07]} 12. Bf4 {[%clk 00:10:01]} {[%emt 00:00:46]} fxe5 {[%clk 00:13:09]}
{[%emt 00:00:04]} 13. dxe5 {[%clk 00:09:14]} {[%emt 00:00:51]} Nd7 {[%clk
00:13:02]} {[%emt 00:00:09]} 14. Qh5 {[%clk 00:08:04]} {[%emt 00:01:11]} Bg6
{[%clk 00:12:28]} {[%emt 00:00:38]} 15. Qg5 {[%clk 00:06:54]} {[%emt 00:01:12]}
Qxg5 {[%clk 00:12:09]} {[%emt 00:00:23]} 16. Bxg5 {[%clk 00:06:51]} {[%emt
00:00:07]} Rxe5+ {[%clk 00:12:09]} {[%emt 00:00:02]} 17. Be3 {[%clk 00:06:43]}
{[%emt 00:00:10]} d4 {[%clk 00:12:11]} {[%emt 00:00:02]} 18. O-O {[%clk
00:05:42]} {[%emt 00:01:04]} dxe3 {[%clk 00:12:09]} {[%emt 00:00:05]} 19. fxe3
{[%clk 00:05:37]} {[%emt 00:00:08]} Bc5 {[%clk 00:11:57]} {[%emt 00:00:14]} 20.
Rad1 {[%clk 00:04:23]} {[%emt 00:01:17]} Nf6 {[%clk 00:11:54]} {[%emt
00:00:06]} 21. Kh1 {[%clk 00:03:56]} {[%emt 00:00:29]} Rae8 {[%clk 00:11:54]}
{[%emt 00:00:05]} 22. e4 {[%clk 00:02:18]} {[%emt 00:01:41]} Bxe4 {[%clk
00:11:17]} {[%emt 00:00:40]} 23. Nxe4 {[%clk 00:02:10]} {[%emt 00:00:10]} Nxe4
{[%clk 00:11:15]} {[%emt 00:00:05]} 24. Rd7 {[%clk 00:00:48]} {[%emt 00:01:25]}
Nf2+ {[%clk 00:11:03]} {[%emt 00:00:15]} 25. Kg1 {[%clk 00:00:45]} {[%emt
00:00:05]} Re1 {[%emt 00:00:21]} 0-1

[Event "Jeux du Barreau 2019"]
[Site "Paris, France"]
[Date "2019.07.10"]
[Round "2.7"]
[White "Lanoe-Campbell, Luca"]
[Black "Leblic, Maximilien"]
[Result "0-1"]
[TimeControl "15+3"]
[WhiteElo "1379"]
[BlackElo "1289"]

1. e4 {[%emt 00:00:02]} e5 {[%emt 00:00:02]} 2. Nf3 {[%clk 00:15:03]} {[%emt
00:00:02]} Nc6 {[%clk 00:15:07]} {[%emt 00:00:01]} 3. d4 {[%clk 00:15:05]}
{[%emt 00:00:01]} d6 {[%clk 00:15:09]} {[%emt 00:00:01]} 4. Bb5 {[%clk
00:14:40]} {[%emt 00:00:28]} Bd7 {[%clk 00:15:01]} {[%emt 00:00:10]} 5. dxe5
{[%clk 00:13:21]} {[%emt 00:01:22]} Nxe5 {[%clk 00:14:26]} {[%emt 00:00:39]} 6.
Bxd7+ {[%emt 00:00:21]} Nxd7 {[%clk 00:14:24]} {[%emt 00:00:02]} 7. Nc3 {[%clk
00:12:59]} {[%emt 00:00:09]} Ngf6 {[%clk 00:14:15]} {[%emt 00:00:12]} 8. O-O
{[%clk 00:12:12]} {[%emt 00:00:50]} Be7 {[%clk 00:13:43]} {[%emt 00:00:35]} 9.
Bf4 {[%clk 00:11:18]} {[%emt 00:00:56]} O-O {[%clk 00:13:19]} {[%emt 00:00:28]}
10. Re1 {[%clk 00:10:45]} {[%emt 00:00:36]} Re8 {[%clk 00:12:55]} {[%emt
00:00:27]} 11. Nd5 {[%clk 00:10:26]} {[%emt 00:00:21]} c6 {[%clk 00:12:05]}
{[%emt 00:00:53]} 12. Nxe7+ {[%clk 00:09:20]} {[%emt 00:01:09]} Qxe7 {[%clk
00:11:51]} {[%emt 00:00:17]} 13. Bxd6 {[%clk 00:08:30]} {[%emt 00:00:53]} Qe6
{[%clk 00:09:33]} {[%emt 00:02:21]} 14. e5 {[%clk 00:08:00]} {[%emt 00:00:33]}
Nd5 {[%clk 00:09:32]} {[%emt 00:00:03]} 15. Ng5 {[%clk 00:07:36]} {[%emt
00:00:27]} Qg6 {[%clk 00:08:36]} {[%emt 00:01:00]} 16. Qd2 {[%clk 00:05:56]}
{[%emt 00:01:41]} f6 {[%clk 00:08:08]} {[%emt 00:00:32]} 17. e6 {[%clk
00:05:21]} {[%emt 00:00:38]} Qxg5 {[%clk 00:06:33]} {[%emt 00:01:39]} 18. exd7
{[%clk 00:04:43]} {[%emt 00:00:40]} Qxd2 {[%clk 00:06:28]} {[%emt 00:00:09]} 19.
Rxe8+ {[%clk 00:04:38]} {[%emt 00:00:08]} Kf7 {[%clk 00:06:17]} {[%emt
00:00:13]} 20. d8=Q {[%clk 00:02:44]} {[%emt 00:01:58]} Rxd8 {[%clk 00:06:18]}
{[%emt 00:00:03]} 21. Rxd8 {[%clk 00:02:42]} {[%emt 00:00:04]} Qxc2 {[%clk
00:04:53]} {[%emt 00:01:27]} 22. Rd7+ {[%clk 00:02:26]} {[%emt 00:00:09]} Kg6
{[%clk 00:04:49]} {[%emt 00:00:18]} 23. Rxb7 {[%clk 00:02:23]} {[%emt
00:00:07]} a6 {[%clk 00:04:44]} {[%emt 00:01:19]} 24. Bf8 {[%clk 00:01:40]}
{[%emt 00:00:46]} a5 {[%clk 00:03:02]} {[%emt 00:00:34]} 25. Rxg7+ {[%clk
00:01:40]} {[%emt 00:00:03]} Kf5 {[%clk 00:03:02]} {[%emt 00:00:03]} 26. g4+
{[%clk 00:01:24]} {[%emt 00:00:19]} Kf4 {[%clk 00:02:38]} {[%emt 00:00:26]} 27.
Bd6+ {[%clk 00:00:53]} {[%emt 00:00:34]} Kf3 {[%clk 00:02:36]} {[%emt
00:00:06]} 0-1

[Event "Jeux du Barreau 2019"]
[Site "Paris, France"]
[Date "2019.07.10"]
[Round "2.8"]
[White "Mangenot, Valentin"]
[Black "Abulius, Thomas"]
[Result "0-1"]
[TimeControl "15+3"]
[WhiteElo "1405"]
[BlackElo "1390"]

1. d4 {[%clk 00:15:04]} {[%emt 00:00:02]} Nf6 {[%clk 00:14:56]} {[%emt
00:00:11]} 2. c4 {[%clk 00:15:05]} {[%emt 00:00:02]} g6 {[%clk 00:14:55]}
{[%emt 00:00:03]} 3. Nc3 {[%clk 00:15:05]} {[%emt 00:00:03]} Bg7 {[%clk
00:14:51]} {[%emt 00:00:07]} 4. e4 {[%clk 00:15:07]} {[%emt 00:00:02]} d6
{[%clk 00:14:54]} 5. h3 {[%clk 00:14:37]} {[%emt 00:00:33]} O-O {[%clk
00:14:49]} {[%emt 00:00:08]} 6. Be3 {[%clk 00:14:35]} {[%emt 00:00:04]} e5
{[%clk 00:14:07]} {[%emt 00:00:44]} 7. d5 {[%clk 00:14:36]} {[%emt 00:00:03]}
Nbd7 {[%clk 00:13:29]} {[%emt 00:00:41]} 8. b4 {[%clk 00:14:11]} {[%emt
00:00:26]} Ne8 {[%clk 00:12:14]} {[%emt 00:01:19]} 9. Bd3 {[%clk 00:14:07]}
{[%emt 00:00:06]} f5 {[%clk 00:11:44]} {[%emt 00:00:34]} 10. Rc1 {[%clk
00:13:46]} {[%emt 00:00:24]} fxe4 {[%clk 00:11:25]} {[%emt 00:00:23]} 11. Nxe4
{[%clk 00:12:52]} {[%emt 00:00:57]} Nef6 {[%clk 00:11:02]} {[%emt 00:00:27]} 12.
Nf3 {[%clk 00:11:16]} {[%emt 00:01:38]} Nxe4 {[%clk 00:10:55]} {[%emt
00:00:10]} 13. Bxe4 {[%clk 00:11:17]} {[%emt 00:00:02]} Nf6 {[%clk 00:10:58]}
14. Nd2 {[%clk 00:11:13]} {[%emt 00:00:06]} Bf5 {[%clk 00:09:23]} {[%emt
00:01:38]} 15. Bxf5 {[%clk 00:10:15]} {[%emt 00:01:01]} gxf5 {[%clk 00:09:22]}
{[%emt 00:00:03]} 16. Nf3 {[%clk 00:09:47]} {[%emt 00:00:31]} h6 {[%clk
00:09:01]} {[%emt 00:00:25]} 17. O-O {[%clk 00:09:42]} {[%emt 00:00:08]} Qe8
{[%clk 00:07:23]} {[%emt 00:01:40]} 18. c5 {[%clk 00:08:50]} {[%emt 00:00:55]}
Qf7 {[%clk 00:07:09]} {[%emt 00:00:17]} 19. c6 {[%clk 00:08:18]} {[%emt
00:00:36]} b6 {[%clk 00:06:57]} {[%emt 00:00:15]} 20. Qb3 {[%clk 00:05:54]}
{[%emt 00:02:26]} Nxd5 {[%clk 00:06:07]} {[%emt 00:00:54]} 21. a4 {[%clk
00:05:12]} {[%emt 00:00:44]} e4 {[%clk 00:05:26]} {[%emt 00:00:44]} 22. Nd2
{[%clk 00:04:34]} {[%emt 00:00:41]} f4 {[%clk 00:04:59]} {[%emt 00:00:31]} 23.
Bxb6 {[%clk 00:03:07]} {[%emt 00:01:30]} Nxb6 {[%clk 00:04:54]} {[%emt
00:00:07]} 24. Qa3 {[%clk 00:03:01]} {[%emt 00:00:09]} Rae8 {[%clk 00:04:34]}
{[%emt 00:00:23]} 25. a5 {[%clk 00:02:55]} {[%emt 00:00:09]} Nd5 {[%clk
00:04:22]} {[%emt 00:00:14]} 26. b5 {[%clk 00:02:55]} {[%emt 00:00:04]} e3
{[%clk 00:03:57]} {[%emt 00:00:29]} 27. fxe3 {[%clk 00:02:56]} {[%emt
00:00:02]} Nxe3 {[%clk 00:03:51]} {[%emt 00:00:09]} 28. Rf2 {[%clk 00:02:31]}
{[%emt 00:00:27]} Bd4 {[%clk 00:03:01]} {[%emt 00:00:53]} 29. Nf3 {[%clk
00:02:24]} {[%emt 00:00:10]} Bc5 {[%clk 00:03:00]} {[%emt 00:00:04]} 30. Rxc5
{[%clk 00:01:46]} {[%emt 00:00:40]} dxc5 {[%clk 00:03:02]} {[%emt 00:00:02]} 31.
Qxc5 {[%clk 00:01:47]} {[%emt 00:00:02]} Ra8 {[%clk 00:02:35]} {[%emt
00:00:30]} 32. Ne5 {[%clk 00:01:18]} {[%emt 00:00:32]} Qd5 {[%clk 00:02:31]}
{[%emt 00:00:06]} 33. Qxd5+ {[%clk 00:00:36]} {[%emt 00:00:47]} Nxd5 {[%clk
00:02:33]} {[%emt 00:00:01]} 34. Rd2 {[%clk 00:00:28]} {[%emt 00:00:11]} Rad8
{[%clk 00:02:13]} {[%emt 00:00:23]} 35. Nd7 {[%clk 00:00:30]} {[%emt 00:00:01]}
Rf5 {[%clk 00:02:02]} {[%emt 00:00:13]} 36. Kf2 {[%clk 00:00:30]} {[%emt
00:00:04]} Kg7 {[%clk 00:01:55]} {[%emt 00:00:10]} 37. Kf3 {[%clk 00:00:27]}
{[%emt 00:00:05]} Nc3 {[%clk 00:01:54]} {[%emt 00:00:04]} 38. Rc2 {[%clk
00:00:24]} {[%emt 00:00:06]} Nxb5 {[%clk 00:01:54]} {[%emt 00:00:04]} 39. Kg4
{[%clk 00:00:18]} {[%emt 00:00:09]} Nd6 {[%clk 00:01:42]} {[%emt 00:00:15]} 40.
Nc5 {[%clk 00:00:19]} {[%emt 00:00:02]} h5+ {[%clk 00:01:21]} {[%emt 00:00:25]}
41. Kf3 {[%clk 00:00:18]} {[%emt 00:00:04]} Re8 {[%clk 00:01:16]} {[%emt
00:00:08]} 42. Rb2 {[%clk 00:00:17]} {[%emt 00:00:03]} Ree5 {[%clk 00:01:05]}
{[%emt 00:00:14]} 43. Nd7 {[%clk 00:00:17]} {[%emt 00:00:03]} Rxa5 {[%clk
00:00:49]} {[%emt 00:00:19]} 44. Re2 {[%clk 00:00:18]} {[%emt 00:00:02]} Ra3+
{[%clk 00:00:43]} {[%emt 00:00:09]} 45. Kf2 {[%clk 00:00:16]} {[%emt 00:00:05]}
Re3 {[%clk 00:00:41]} {[%emt 00:00:05]} 46. Rd2 {[%clk 00:00:11]} {[%emt
00:00:08]} Ne4+ {[%clk 00:00:39]} {[%emt 00:00:06]} 47. Kf1 {[%clk 00:00:11]}
{[%emt 00:00:03]} Nxd2+ {[%clk 00:00:40]} {[%emt 00:00:01]} 48. Kf2 {[%clk
00:00:13]} Rc3 {[%clk 00:00:36]} {[%emt 00:00:08]} 0-1

[Event "Jeux du Barreau 2019"]
[Site "Paris, France"]
[Date "2019.07.10"]
[Round "2.9"]
[White "Rabbe, Laurent"]
[Black "Constant, Arnaud"]
[Result "0-1"]
[TimeControl "15+3"]
[WhiteElo "1399"]
[BlackElo "1399"]

1. d4 {[%clk 00:14:56]} {[%emt 00:00:08]} Nf6 {[%clk 00:15:03]} {[%emt
00:00:04]} 2. c4 {[%clk 00:14:53]} {[%emt 00:00:06]} d5 {[%clk 00:14:18]}
{[%emt 00:00:48]} 3. Bg5 {[%clk 00:14:21]} {[%emt 00:00:35]} Nc6 {[%clk
00:13:58]} {[%emt 00:00:24]} 4. e3 {[%clk 00:14:15]} {[%emt 00:00:09]} Ne4
{[%clk 00:13:26]} {[%emt 00:00:34]} 5. Nf3 {[%clk 00:13:47]} {[%emt 00:00:30]}
Bg4 {[%clk 00:13:15]} {[%emt 00:00:15]} 6. Nc3 {[%clk 00:13:25]} {[%emt
00:00:26]} Nxg5 {[%clk 00:13:13]} {[%emt 00:00:04]} 7. Bd3 {[%clk 00:13:19]}
{[%emt 00:00:09]} e6 {[%clk 00:11:46]} {[%emt 00:00:32]} 8. O-O {[%clk
00:13:03]} {[%emt 00:01:16]} Qf6 {[%clk 00:10:40]} {[%emt 00:01:08]} 9. Qa4
{[%clk 00:12:43]} {[%emt 00:00:25]} Bxf3 {[%clk 00:10:15]} {[%emt 00:00:18]} 10.
gxf3 {[%clk 00:11:20]} {[%emt 00:01:35]} Qxf3 {[%clk 00:10:11]} {[%emt
00:00:06]} 11. Rfe1 {[%clk 00:09:17]} {[%emt 00:02:08]} Nh3+ {[%clk 00:10:01]}
{[%emt 00:00:13]} 12. Kf1 {[%clk 00:09:09]} {[%emt 00:00:10]} Qxf2# {[%clk
00:10:02]} {[%emt 00:00:02]} 0-1